bitfinex/quotes_BTCUSD_20251120
["timestamp","ask_amount","ask_price","bid_price","bid_amount"]
[1763652751539,0.22051202,90698.0,90695.0,0.02338]
[1763652751540,0.22051779,90696.0,90695.0,0.02338]
[1763652751747,0.22051202,90698.0,90695.0,0.02338]
[1763652751952,0.22051706,90696.0,90694.0,0.01099084]
[1763652752606,0.02756491,90695.0,90694.0,0.01099084]
[1763652752813,0.22051706,90696.0,90694.0,0.01099084]
[1763652753014,0.22051872,90696.0,90694.0,0.01099084]
[1763652753234,0.24711364,90695.0,90694.0,0.01099084]
[1763652753441,0.28706204,90695.0,90694.0,0.01099084]
[1763652753644,0.22051932,90695.0,90694.0,0.01099084]
[1763652753867,0.22214729,90695.0,90694.0,0.01099084]
[1763652754079,0.22590729,90695.0,90694.0,0.01099084]
[1763652754522,0.27800978,90695.0,90694.0,0.01099084]
[1763652754764,0.39558756,90695.0,90694.0,0.01099084]
[1763652755234,0.24621028,90695.0,90694.0,0.01099084]
[1763652755871,0.24721028,90695.0,90694.0,0.01099084]
[1763652756081,0.29831277,90695.0,90694.0,0.01099084]
[1763652756511,0.29931277,90695.0,90694.0,0.01099084]
[1763652756724,0.29831277,90695.0,90694.0,0.01099084]
[1763652756905,0.73078823,90695.0,90694.0,0.01099084]
[1763652757154,0.73078823,90695.0,90694.0,0.00832084]
[1763652757804,0.73078823,90695.0,90640.0,0.05887571]
[1763652757805,0.220658,90638.0,90637.0,0.07539599]
[1763652758021,0.220658,90638.0,90620.0,0.73066813]
[1763652758022,0.00376,90638.0,90626.0,0.01149]
[1763652758238,0.01103302,90637.0,90626.0,0.01149]
[1763652758453,0.01103363,90632.0,90622.0,0.01652028]
[1763652758672,0.22066774,90634.0,90623.0,0.01103472]
[1763652758912,0.01103338,90634.0,90622.0,0.02755512]
[1763652759124,0.00376,90633.0,90632.0,0.01103363]
[1763652759356,0.0147935,90633.0,90626.0,0.01103436]
[1763652759572,0.00376,90633.0,90630.0,0.01103387]
[1763652759785,0.22067867,90630.0,90622.0,0.02755512]
[1763652759999,0.00376,90633.0,90630.0,0.23170945]
[1763652760232,0.00376,90633.0,90623.0,0.23185456]
[1763652760449,0.22069007,90625.0,90623.0,0.00012599]
[1763652760677,0.22067747,90630.0,90623.0,0.00012599]
[1763652760678,0.01103314,90636.0,90626.0,0.01103436]
[1763652760888,0.22069209,90624.0,90623.0,0.00012599]
[1763652761117,0.2476247,90624.0,90623.0,0.00012599]
[1763652761330,0.29972719,90624.0,90623.0,0.00012599]
[1763652761570,0.32005072,90624.0,90623.0,0.00012599]
[1763652761989,0.29687811,90624.0,90623.0,0.00012599]
[1763652762207,0.24101562,90624.0,90623.0,0.00012599]
[1763652762429,0.24477562,90624.0,90623.0,0.00012599]
[1763652762650,0.24477562,90624.0,90578.0,0.05887571]
[1763652762651,0.01103923,90586.0,90573.0,0.01149]
[1763652762886,0.323,90616.0,90581.0,0.01103984]
[1763652762887,0.00376,90585.0,90581.0,0.01103984]
[1763652763102,0.00376,90585.0,90579.0,0.22080032]
[1763652763103,0.01103704,90604.0,90586.0,0.01103923]
[1763652763348,0.01103825,90594.0,90572.0,0.03439093]
[1763652763554,0.01103801,90596.0,90586.0,0.01103923]
[1763652763555,0.22077412,90591.0,90586.0,0.01103923]
[1763652763760,0.00376,90590.0,90586.0,0.01103923]
[1763652763973,0.00376,90590.0,90589.0,0.22077735]
[1763652764178,0.33403643,90609.0,90588.0,0.01103898]
[1763652764179,0.01103764,90599.0,90588.0,0.01103898]
[1763652764378,0.01103752,90600.0,90588.0,0.01103898]
[1763652764379,0.00376,90598.0,90593.0,0.01103838]
[1763652764633,0.00376,90598.0,90595.0,0.01103813]
[1763652764634,0.22451598,90598.0,90595.0,0.01103813]
[1763652764839,0.22451598,90598.0,90588.0,0.01103898]
[1763652764840,0.00376,90598.0,90576.0,0.00970942]
[1763652765047,0.22077612,90590.0,90587.0,0.01103911]
[1763652765251,0.22076457,90595.0,90591.0,0.01103862]
[1763652765499,0.22078206,90588.0,90576.0,0.02074987]
[1763652765708,0.01103874,90590.0,90577.0,0.05141653]
[1763652765914,0.00376,90598.0,90576.0,0.02074987]
[1763652765915,0.22077735,90589.0,90581.0,0.01103984]
[1763652766119,0.22079337,90583.0,90580.0,0.01103996]
[1763652766322,0.22079903,90581.0,90575.0,0.25986115]
[1763652766523,0.00376,90584.0,90579.0,0.01104008]
[1763652766524,0.22079321,90583.0,90579.0,0.01104008]
[1763652766759,0.22079321,90583.0,90578.0,0.0110402]
[1763652766961,0.00376,90584.0,90575.0,0.03905085]
[1763652767161,0.00376,90584.0,90581.0,0.01103984]
[1763652767572,0.22455058,90584.0,90581.0,0.01103984]
[1763652767979,0.22455058,90584.0,90582.0,0.22079252]
[1763652767980,0.00376,90584.0,90582.0,0.22079252]
[1763652768188,0.00376,90584.0,90579.0,0.22080151]
[1763652768402,0.00376,90584.0,90581.0,0.01103984]
[1763652768607,0.00376,90584.0,90575.0,0.02253057]
[1763652768608,0.22080708,90577.0,90575.0,0.01149]
[1763652768819,0.22080708,90577.0,90568.0,0.22082615]
[1763652768820,0.00376,90584.0,90567.0,0.02253154]
[1763652768994,0.00376,90584.0,90575.0,0.01104057]
[1763652768995,0.2208054,90578.0,90575.0,0.01104057]
[1763652769195,0.22080283,90579.0,90573.0,0.00042022]
[1763652769431,0.00376,90584.0,90573.0,0.00042022]
[1763652769641,0.22080762,90577.0,90573.0,0.00042022]
[1763652769865,0.22080762,90577.0,90573.0,0.01146103]
[1763652770066,0.22080152,90580.0,90573.0,0.00042022]
[1763652770067,0.22081392,90574.0,90573.0,0.00042022]
[1763652770271,0.22077756,90589.0,90577.0,0.01104033]
[1763652770476,0.01103886,90589.0,90577.0,0.01104033]
[1763652770682,0.22077814,90589.0,90581.0,0.23183548]
[1763652770884,0.22077941,90589.0,90574.0,0.01149]
[1763652771129,0.22081067,90576.0,90574.0,0.01149]
[1763652771924,0.22081067,90576.0,90573.0,0.00042022]
[1763652771925,0.22081392,90574.0,90573.0,0.00042022]
[1763652772557,0.22078816,90585.0,90573.0,0.00042022]
[1763652772769,0.2208122,90575.0,90573.0,0.00042022]
[1763652773639,0.22079246,90583.0,90573.0,0.00042022]
[1763652773640,0.22078339,90587.0,90578.0,0.0110402]
[1763652773854,0.01103984,90581.0,90573.0,0.00042022]
[1763652774053,0.22081191,90575.0,90573.0,0.00042022]
[1763652775058,0.22081192,90575.0,90573.0,0.00042022]
[1763652775421,0.22081205,90575.0,90573.0,0.00042022]
[1763652775622,0.01103972,90582.0,90573.0,0.00042022]
[1763652775832,0.22080969,90576.0,90574.0,0.01149]
[1763652776442,0.220824,90572.0,90568.0,0.01149]
[1763652776649,0.00376,90571.0,90568.0,0.02265741]
[1763652777079,0.00376,90571.0,90569.0,0.22082611]
[1763652778136,0.00376,90571.0,90570.0,0.26036367]
[1763652778673,0.01103862,90591.0,90570.0,0.26036367]
[1763652778674,0.00376,90573.0,90570.0,0.03954]
[1763652778896,0.00376,90573.0,90571.0,0.24417055]
[1763652779129,0.05210249,90597.0,90568.0,0.01161599]
[1763652779130,0.00376,90584.0,90574.0,0.01104069]
[1763652779373,0.22079755,90581.0,90578.0,0.0110402]
[1763652779573,0.2207956,90582.0,90579.0,0.01104008]
[1763652779772,0.22079911,90581.0,90580.0,0.01619]
[1763652779993,0.22080904,90576.0,90575.0,0.01652028]
[1763652780198,0.22080904,90576.0,90564.0,0.34635]
[1763652780199,0.22079929,90580.0,90564.0,0.02335]
[1763652780400,0.22082611,90569.0,90568.0,0.00012599]
[1763652780611,0.26499113,90569.0,90568.0,0.00012599]
[1763652781258,0.26499113,90569.0,90530.0,0.01149]
[1763652781259,0.2208944,90541.0,90530.0,0.01149]
[1763652781425,0.2208944,90541.0,90520.0,0.0002]
[1763652781426,0.2208944,90541.0,90540.0,0.00052609]
[1763652781624,0.2208944,90541.0,90520.0,0.0002]
[1763652781625,0.2209432,90521.0,90520.0,0.0002]
[1763652781870,0.2209432,90521.0,90520.0,0.00032616]
[1763652781871,0.00376,90521.0,90520.0,0.00032616]
[1763652782739,0.2247032,90521.0,90520.0,0.00032616]
[1763652783072,0.00376,90521.0,90520.0,0.00032616]
[1763652783516,0.2247032,90521.0,90520.0,0.00032616]
[1763652783957,0.3001769,90521.0,90520.0,0.00032616]
[1763652784170,0.59606766,90512.0,90511.0,0.00429052]
[1763652784584,0.37510249,90512.0,90511.0,0.00429052]
[1763652785435,0.37710249,90512.0,90511.0,0.00429052]
[1763652785693,0.42126751,90512.0,90511.0,0.00429052]
[1763652785895,0.41926751,90512.0,90511.0,0.00429052]
[1763652786116,0.42226751,90512.0,90511.0,0.00429052]
[1763652786341,0.44245191,90512.0,90511.0,0.00429052]
[1763652786816,0.50505483,90512.0,90511.0,0.00429052]
[1763652787083,0.52899942,90512.0,90511.0,0.00429052]
[1763652787291,0.37810249,90512.0,90511.0,0.00429052]
[1763652787494,0.38186249,90512.0,90511.0,0.00429052]
[1763652787700,0.37810249,90512.0,90511.0,0.00229052]
[1763652787904,0.38186249,90512.0,90511.0,0.00229052]
[1763652788736,0.003,90512.0,90511.0,0.00229052]
[1763652788952,0.00676,90512.0,90511.0,0.00229052]
[1763652789169,0.05886249,90512.0,90511.0,0.00229052]
[1763652789590,0.05686249,90512.0,90511.0,0.00229052]
[1763652789794,0.38086249,90512.0,90511.0,0.00229052]
[1763652790451,0.42986249,90512.0,90511.0,1e-08]
[1763652790854,0.38086249,90512.0,90511.0,1e-08]
[1763652791287,0.37986249,90512.0,90511.0,1e-08]
[1763652791487,0.42886249,90512.0,90511.0,1e-08]
[1763652791698,0.45106984,90512.0,90511.0,1e-08]
[1763652791901,0.40306984,90512.0,90511.0,1e-08]
[1763652792125,0.40106984,90512.0,90511.0,1e-08]
[1763652792338,0.45106984,90512.0,90511.0,1e-08]
[1763652792550,0.45106984,90512.0,90490.0,1e-08]
[1763652792551,0.22101645,90491.0,90490.0,1e-08]
[1763652792790,0.22101645,90491.0,90490.0,0.00042038]
[1763652792791,0.59611894,90491.0,90490.0,0.00042038]
[1763652793018,0.27687894,90491.0,90490.0,0.00042038]
[1763652793711,0.27787894,90491.0,90490.0,0.00042038]
[1763652794330,0.27687894,90491.0,90490.0,0.00042038]
[1763652794734,0.29520859,90491.0,90490.0,1e-08]
[1763652795417,0.29420859,90491.0,90490.0,1e-08]
[1763652795847,0.29620859,90491.0,90490.0,1e-08]
[1763652796282,0.59614337,90481.0,90480.0,1e-08]
[1763652796490,0.59614337,90481.0,90440.0,0.0004]
[1763652796491,0.22113864,90441.0,90440.0,0.0004]
[1763652796745,0.00376,90441.0,90440.0,0.0004]
[1763652797386,0.22489864,90441.0,90440.0,0.0004]
[1763652797792,0.22531746,90441.0,90440.0,0.0004]
[1763652798205,0.00041882,90441.0,90440.0,0.0004]
[1763652798407,0.00417882,90441.0,90440.0,0.0004]
[1763652798581,0.00417882,90441.0,90440.0,0.00250917]
[1763652799117,0.00417882,90441.0,90440.0,0.04321917]
[1763652799329,0.00041882,90441.0,90440.0,0.04321917]
[1763652799546,0.00041882,90441.0,90440.0,0.00250917]
[1763652801909,0.00417882,90441.0,90440.0,0.00250917]
[1763652802323,0.00041882,90441.0,90440.0,0.04321917]
[1763652802542,0.00376,90459.0,90440.0,0.05419681]
[1763652802741,0.00376,90459.0,90456.0,0.01105509]
[1763652802969,0.00376,90459.0,90456.0,0.23215523]
[1763652803121,0.00376,90459.0,90455.0,0.01105522]
[1763652803122,0.00376,90459.0,90453.0,0.01105546]
[1763652803321,0.00376,90459.0,90452.0,0.01105558]
[1763652803533,0.22109708,90458.0,90452.0,0.24314311]
[1763652803747,0.22110781,90454.0,90452.0,0.01097764]
[1763652804155,0.2211093,90453.0,90443.0,0.22113242]
[1763652804415,0.22113319,90444.0,90442.0,0.01097764]
[1763652804589,0.00376,90443.0,90442.0,0.01097764]
[1763652805626,0.01652028,90466.0,90442.0,0.01097764]
[1763652805627,0.02168205,90465.0,90451.0,0.0110557]
[1763652805823,0.02168205,90465.0,90442.0,0.07605898]
[1763652805824,0.22108241,90464.0,90442.0,0.37468764]
[1763652806032,0.22110674,90455.0,90445.0,0.22112755]
[1763652806250,0.22111493,90451.0,90445.0,0.22112834]
[1763652806528,0.0424554,90450.0,90442.0,0.01097764]
[1763652806718,0.00376,90449.0,90446.0,0.01105632]
[1763652806871,0.00376,90449.0,90442.0,0.01097764]
[1763652807073,0.00376,90449.0,90446.0,0.01105632]
[1763652807291,0.00376,90449.0,90442.0,0.02203444]
[1763652807292,0.22487988,90449.0,90442.0,0.02203444]
[1763652807491,0.22113155,90445.0,90442.0,0.01097764]
[1763652807701,0.22113155,90445.0,90442.0,0.02303444]
[1763652808035,0.22113185,90444.0,90442.0,0.01097764]
[1763652808242,0.22113218,90444.0,90442.0,0.01097764]
[1763652808689,0.01105387,90466.0,90446.0,0.01105632]
[1763652808878,0.01105155,90485.0,90466.0,0.01105387]
[1763652809123,0.22105192,90477.0,90466.0,0.01097764]
[1763652809328,0.22107364,90468.0,90466.0,0.01097764]
[1763652809531,0.00376,90476.0,90473.0,0.01105302]
[1763652809748,0.00376,90476.0,90474.0,0.22105766]
[1763652809979,0.02762827,90487.0,90480.0,0.01105216]
[1763652810195,0.02762827,90487.0,90475.0,0.01596]
[1763652810196,0.00376,90486.0,90483.0,0.01105179]
[1763652810400,0.01104947,90502.0,90481.0,0.02262204]
[1763652810613,0.22103617,90483.0,90480.0,0.01097764]
[1763652810820,0.0313898,90482.0,90481.0,0.00012556]
[1763652811033,0.25242823,90482.0,90481.0,0.00012556]
[1763652811246,0.22479843,90482.0,90481.0,0.00012556]
[1763652811453,0.25242823,90482.0,90481.0,0.00012556]
[1763652812279,0.22479843,90482.0,90481.0,0.00012556]
[1763652812519,0.00376,90482.0,90481.0,0.00012556]
[1763652812992,0.05172218,90482.0,90481.0,0.00012556]
[1763652813415,0.43699903,90482.0,90481.0,0.00012556]
[1763652813615,0.40936923,90482.0,90481.0,0.00012556]
[1763652814048,0.40936923,90482.0,90441.0,0.02302693]
[1763652814049,0.37510249,90471.0,90441.0,0.01097764]
[1763652814257,0.22113619,90442.0,90441.0,0.01097764]
[1763652814461,0.00376,90443.0,90442.0,0.23219253]
[1763652814667,0.00376,90443.0,90441.0,0.01097764]
[1763652814879,0.22489407,90443.0,90441.0,0.01097764]
[1763652815119,0.00376,90443.0,90441.0,0.01097764]
[1763652815334,0.2248942,90443.0,90441.0,0.01097764]
[1763652815537,0.22113864,90441.0,90440.0,0.0004]
[1763652815964,0.24149661,90441.0,90440.0,0.0004]
[1763652816195,0.6165991,90441.0,90440.0,0.0004]
[1763652816641,0.62677388,90441.0,90440.0,0.0004]
[1763652817059,0.62677388,90441.0,90440.0,1e-08]
[1763652817268,0.62677388,90441.0,90413.0,9e-05]
[1763652817269,0.59629004,90421.0,90413.0,9e-05]
[1763652817480,0.63055687,90421.0,90413.0,9e-05]
[1763652818116,0.30379687,90421.0,90413.0,9e-05]
[1763652818324,0.29738209,90421.0,90413.0,9e-05]
[1763652818758,0.29462209,90421.0,90413.0,9e-05]
[1763652818965,0.29838209,90421.0,90413.0,9e-05]
[1763652819139,0.2472796,90421.0,90413.0,9e-05]
[1763652819581,0.34222417,90421.0,90413.0,9e-05]
[1763652819987,0.34222417,90421.0,90420.0,0.0029039]
[1763652820234,0.2462796,90421.0,90420.0,0.0029039]
[1763652820447,0.02106064,90421.0,90420.0,0.0029039]
[1763652820657,0.00476,90421.0,90420.0,0.0029039]
[1763652820857,0.22694755,90421.0,90420.0,0.0029039]
[1763652821063,0.00576,90421.0,90420.0,0.0029039]
[1763652821477,0.22594755,90421.0,90420.0,0.0029039]
[1763652821704,0.00376,90421.0,90420.0,0.0029039]
[1763652822666,0.01105742,90437.0,90424.0,0.01105901]
[1763652822841,0.03140385,90436.0,90433.0,0.01105791]
[1763652823045,0.03140385,90436.0,90430.0,0.01105827]
[1763652823046,0.00376,90436.0,90430.0,0.01105827]
[1763652823410,0.00376,90436.0,90421.0,0.01188]
[1763652823411,0.01105791,90433.0,90420.0,0.0112595]
[1763652823546,0.22117152,90428.0,90420.0,0.0112595]
[1763652823731,0.01105815,90431.0,90420.0,0.0112595]
[1763652823931,0.01105815,90431.0,90420.0,0.0002]
[1763652823932,0.01105876,90426.0,90420.0,0.0002]
[1763652824150,0.22118585,90422.0,90420.0,0.0002]
[1763652824358,0.00376,90421.0,90420.0,0.0002]
[1763652825658,0.00376,90421.0,90420.0,0.0012]
[1763652825859,0.2211667,90430.0,90426.0,0.01105876]
[1763652826100,0.22117043,90428.0,90426.0,0.01097764]
[1763652826416,0.01105754,90436.0,90433.0,0.01105791]
[1763652826417,0.22115194,90436.0,90433.0,0.01105791]
[1763652826617,0.00376,90435.0,90431.0,0.01105815]
[1763652826797,0.03140416,90435.0,90433.0,0.22115714]
[1763652827013,0.00012558,90443.0,90440.0,0.01105705]
[1763652827204,0.00376,90442.0,90440.0,0.01097764]
[1763652827358,0.00376,90442.0,90440.0,0.23211752]
[1763652827584,0.00376,90442.0,90441.0,0.01188]
[1763652827992,0.00376,90442.0,90440.0,0.23211752]
[1763652827993,0.00376,90442.0,90440.0,0.01097764]
[1763652828198,0.00376,90442.0,90436.0,0.00222809]
[1763652828199,0.23220338,90439.0,90436.0,0.00222809]
[1763652828365,0.02764324,90438.0,90430.0,0.01105827]
[1763652828566,0.02764324,90438.0,90432.0,0.01105803]
[1763652828801,0.00012558,90443.0,90437.0,0.02753742]
[1763652829020,0.00376,90442.0,90441.0,0.22113828]
[1763652829321,0.00376,90442.0,90441.0,0.23211592]
[1763652829526,0.00376,90442.0,90441.0,0.01097764]
[1763652829814,0.03140202,90442.0,90441.0,0.01097764]
[1763652831440,0.00376,90442.0,90441.0,0.01097764]
[1763652832220,0.00012558,90443.0,90442.0,0.22113619]
[1763652832420,0.00388558,90443.0,90442.0,0.22113619]
[1763652832627,0.00388558,90443.0,90442.0,0.35587379]
[1763652832836,0.00388558,90443.0,90441.0,0.23211572]
[1763652833033,0.00388558,90443.0,90442.0,0.04076]
[1763652833238,0.00388558,90443.0,90442.0,0.01648]
[1763652833580,0.00388558,90443.0,90441.0,0.23211473]
[1763652833725,0.00388558,90443.0,90441.0,0.01097764]
[1763652833925,0.00388558,90443.0,90442.0,0.00204971]
[1763652835122,0.22501933,90443.0,90442.0,0.00204971]
[1763652836862,0.00388558,90443.0,90442.0,0.00204971]
[1763652837132,0.22516531,90443.0,90442.0,0.00204971]
[1763652837324,0.00403156,90443.0,90442.0,0.00204971]
[1763652837502,0.00403156,90443.0,90442.0,0.2231859]
[1763652838074,0.00403156,90443.0,90442.0,0.00204971]
[1763652838717,0.22516531,90443.0,90442.0,0.00204971]
[1763652839124,0.31733619,90443.0,90442.0,0.00204971]
[1763652839796,0.69243868,90443.0,90442.0,0.00204971]
[1763652840477,0.6002678,90443.0,90442.0,0.00204971]
[1763652840724,0.00027156,90443.0,90442.0,0.00204971]
[1763652841074,0.01876479,90443.0,90442.0,0.00204971]
[1763652841281,0.01976479,90443.0,90442.0,0.00204971]
[1763652841477,0.00227156,90443.0,90442.0,0.2396659]
[1763652841680,0.00503156,90443.0,90442.0,0.31138191]
[1763652842087,0.00503156,90443.0,90442.0,0.2639459]
[1763652842305,0.00503156,90443.0,90442.0,0.2396659]
[1763652842514,0.00403156,90443.0,90442.0,0.00204971]
[1763652842717,0.03167327,90443.0,90442.0,0.00204971]
[1763652842933,0.03826089,90443.0,90442.0,0.00204971]
[1763652843138,0.11174226,90443.0,90442.0,0.00204971]
[1763652843338,0.17377741,90443.0,90442.0,0.00204971]
[1763652843546,0.49677741,90443.0,90442.0,0.00204971]
[1763652843741,0.4691357,90443.0,90442.0,0.00204971]
[1763652844148,0.4691357,90443.0,90400.0,0.07005335]
[1763652844149,0.22118755,90421.0,90400.0,0.07005335]
[1763652844359,0.24146783,90421.0,90400.0,0.01117764]
[1763652844564,0.23223442,90426.0,90400.0,0.01117764]
[1763652844565,0.01679184,90443.0,90415.0,0.01212]
[1763652844741,0.00127156,90443.0,90441.0,0.01212]
[1763652845116,0.00227156,90443.0,90441.0,0.01212]
[1763652845281,0.00376,90442.0,90441.0,0.01212]
[1763652845480,0.00127156,90443.0,90442.0,0.22113619]
[1763652845654,0.00376,90442.0,90439.0,0.01105717]
[1763652845858,0.00376,90442.0,90440.0,0.22113956]
[1763652846178,0.00376,90442.0,90440.0,0.22114108]
[1763652846380,0.00376,90442.0,90440.0,0.22113974]
[1763652847547,0.00376,90442.0,90440.0,0.22213974]
[1763652847948,0.00027156,90443.0,90442.0,0.22113619]
[1763652848158,0.00403156,90443.0,90440.0,0.001]
[1763652848354,0.00403156,90443.0,90440.0,0.01105705]
[1763652848510,0.00403156,90443.0,90441.0,0.22113762]
[1763652848919,0.00403156,90443.0,90441.0,0.22113812]
[1763652849900,0.00027156,90443.0,90442.0,0.03998]
[1763652850116,0.00027156,90443.0,90442.0,0.09885571]
[1763652850312,0.00027156,90443.0,90442.0,0.03998]
[1763652850741,0.00027156,90443.0,90442.0,0.07522517]
[1763652851003,0.00027156,90443.0,90442.0,0.01563]
[1763652851232,0.00027156,90443.0,90442.0,0.10808531]
[1763652851612,0.00027156,90443.0,90442.0,0.10908531]
[1763652852496,0.323,90478.0,90464.0,0.01105412]
[1763652852497,0.01105241,90478.0,90464.0,0.01105412]
[1763652852699,0.22105822,90474.0,90470.0,0.01105338]
[1763652852924,0.22105436,90476.0,90473.0,0.01105302]
[1763652853156,0.22105436,90476.0,90471.0,0.23211623]
[1763652853157,0.00376,90477.0,90471.0,0.01105326]
[1763652853368,0.00376,90477.0,90472.0,0.22106224]
[1763652853572,0.00376,90477.0,90475.0,0.22105488]
[1763652853781,0.00376,90477.0,90475.0,0.23203252]
[1763652853987,0.22481165,90477.0,90475.0,0.01097764]
[1763652854202,0.22481165,90477.0,90465.0,0.02317399]
[1763652854203,0.01105363,90468.0,90465.0,0.01097764]
[1763652854440,0.22107547,90467.0,90465.0,0.01097764]
[1763652854641,0.00376,90477.0,90470.0,0.01105338]
[1763652854853,0.02763133,90477.0,90470.0,0.00841189]
[1763652855070,0.22107753,90466.0,90465.0,0.01097764]
[1763652855494,0.22106775,90470.0,90465.0,0.01097764]
[1763652855736,0.01652028,90515.0,90465.0,0.01097764]
[1763652855737,0.22107567,90467.0,90465.0,0.01097764]
[1763652855940,0.01105253,90477.0,90469.0,0.01105351]
[1763652856150,0.00012612,90478.0,90465.0,0.01097764]
[1763652856151,0.02146564,90476.0,90465.0,0.01097764]
[1763652856361,0.22107646,90467.0,90465.0,0.01097764]
[1763652856575,0.02215792,90466.0,90465.0,0.01097764]
[1763652857203,0.09511775,90466.0,90465.0,0.01097764]
[1763652857408,0.02215792,90466.0,90465.0,0.01097764]
[1763652857871,0.02215792,90466.0,90454.0,0.01097764]
[1763652858078,0.22113375,90443.0,90442.0,0.01097764]
[1763652858287,0.22489375,90443.0,90442.0,0.01097764]
[1763652858900,0.37024542,90443.0,90442.0,0.01097764]
[1763652859127,0.27699624,90443.0,90442.0,0.01097764]
[1763652859319,0.22489375,90443.0,90442.0,0.01097764]
[1763652859767,0.00376,90443.0,90436.0,0.01105754]
[1763652859973,0.22113619,90442.0,90437.0,0.23220519]
[1763652860181,0.01105546,90453.0,90442.0,0.01212]
[1763652860384,0.01105705,90440.0,90434.0,0.00023776]
[1763652860591,0.22115166,90436.0,90434.0,0.00023776]
[1763652862006,0.00376,90439.0,90434.0,0.00023776]
[1763652862231,0.72062221,90460.0,90434.0,0.00023776]
[1763652862232,0.22113417,90443.0,90438.0,0.01105729]
[1763652862433,0.00376,90438.0,90436.0,0.23220617]
[1763652862639,0.00376,90438.0,90437.0,0.04890075]
[1763652862810,0.01105424,90463.0,90445.0,0.01105644]
[1763652863013,0.22111663,90451.0,90448.0,0.01105607]
[1763652863320,0.06862277,90468.0,90443.0,0.22113225]
[1763652863321,0.22487908,90450.0,90443.0,0.01105668]
[1763652863508,0.2211194,90449.0,90445.0,0.22112878]
[1763652863721,0.00376,90450.0,90446.0,0.01105632]
[1763652863929,0.00376,90450.0,90445.0,0.23218369]
[1763652864333,0.22487683,90450.0,90447.0,0.01105619]
[1763652864609,0.22487683,90450.0,90446.0,0.08303124]
[1763652864610,0.00376,90450.0,90441.0,0.01105693]
[1763652864835,0.22112892,90445.0,90439.0,0.01212]
[1763652865041,0.00376,90450.0,90440.0,0.23219786]
[1763652865270,0.22113672,90442.0,90439.0,0.24432057]
[1763652865578,0.01481583,90450.0,90437.0,0.01097764]
[1763652865821,0.02763988,90449.0,90443.0,0.01105668]
[1763652866011,0.00376,90450.0,90446.0,0.23218192]
[1763652866225,0.03875774,90456.0,90452.0,0.01105558]
[1763652866432,0.01112,90459.0,90453.0,0.01105546]
[1763652866645,0.02763469,90466.0,90463.0,0.01105424]
[1763652866863,0.00012614,90466.0,90465.0,0.01105399]
[1763652867292,0.00388614,90466.0,90465.0,0.01212]
[1763652867498,0.01105399,90465.0,90449.0,0.01212]
[1763652867712,0.01105509,90456.0,90437.0,0.01105742]
[1763652867923,0.01105509,90456.0,90430.0,0.72062221]
[1763652867924,0.22112555,90447.0,90431.0,0.323]
[1763652868153,0.01105595,90449.0,90435.0,0.24872955]
[1763652868371,0.22114108,90440.0,90439.0,0.02962573]
[1763652868588,0.22113864,90441.0,90439.0,0.02962573]
[1763652868589,0.22114078,90441.0,90439.0,0.02962573]
[1763652868798,0.22114034,90441.0,90439.0,0.02962573]
[1763652869000,0.22114353,90439.0,90438.0,0.01212]
[1763652869208,0.22114108,90440.0,90438.0,0.01212]
[1763652869444,0.01105583,90450.0,90438.0,0.01212]
[1763652869680,0.01105558,90452.0,90438.0,0.23326392]
[1763652869888,0.23217875,90448.0,90438.0,0.01212]
[1763652870097,0.02764049,90447.0,90443.0,0.22113282]
[1763652870300,0.23216476,90453.0,90441.0,0.01212]
[1763652870503,0.2321909,90443.0,90421.0,0.01212]
[1763652870714,0.2321909,90443.0,90427.0,0.01105864]
[1763652870715,0.22115932,90433.0,90427.0,0.01105864]
[1763652870921,0.22115932,90433.0,90421.0,0.03647]
[1763652870922,0.01112,90437.0,90424.0,0.33405901]
[1763652871153,0.01112,90437.0,90433.0,0.23221367]
[1763652871355,0.00376,90443.0,90436.0,0.01105754]
[1763652871564,0.00376,90443.0,90425.0,0.05359318]
[1763652871565,0.00376,90452.0,90442.0,0.02775]
[1763652871774,0.00376,90452.0,90425.0,0.05359318]
[1763652871775,0.01105595,90449.0,90429.0,0.02435]
[1763652871982,0.22114639,90438.0,90433.0,0.22115794]
[1763652872190,0.00376,90440.0,90437.0,0.01105742]
[1763652872424,0.00376,90440.0,90436.0,0.01105754]
[1763652872637,0.00376,90440.0,90437.0,0.01105742]
[1763652872844,0.00376,90440.0,90439.0,0.22114353]
[1763652873332,0.00376,90440.0,90433.0,0.01105791]
[1763652873333,0.01105766,90435.0,90429.0,0.00041882]
[1763652873660,0.23228554,90430.0,90429.0,0.00041882]
[1763652873852,0.24733554,90430.0,90429.0,0.00041882]
[1763652874788,0.27120554,90430.0,90429.0,0.00041882]
[1763652874992,0.4217457,90430.0,90429.0,0.00041882]
[1763652875398,0.7447457,90430.0,90429.0,0.00041882]
[1763652875846,0.7447457,90430.0,90429.0,1e-08]
[1763652876069,0.59629004,90421.0,90420.0,0.0002]
[1763652876269,0.59629004,90421.0,90420.0,1e-08]
[1763652876270,0.63672146,90421.0,90420.0,1e-08]
[1763652876505,0.71059146,90421.0,90420.0,1e-08]
[1763652876699,0.71059146,90421.0,90420.0,0.00041617]
[1763652876902,0.79359485,90421.0,90420.0,0.00041617]
[1763652877734,0.79359485,90421.0,90420.0,1e-08]
[1763652877934,0.63563041,90421.0,90420.0,1e-08]
[1763652878139,0.58728792,90421.0,90420.0,1e-08]
[1763652878340,0.64039041,90421.0,90420.0,1e-08]
[1763652878652,0.64139041,90421.0,90420.0,1e-08]
[1763652879331,0.58728792,90421.0,90420.0,1e-08]
[1763652879506,0.64039041,90421.0,90420.0,1e-08]
[1763652879721,0.64139041,90421.0,90420.0,1e-08]
[1763652880302,0.22127649,90385.0,90378.0,0.22129279]
[1763652880500,0.01106292,90392.0,90369.0,0.01106574]
[1763652880501,0.22128735,90381.0,90369.0,0.01106574]
[1763652880787,0.22128735,90381.0,90340.0,0.00999999]
[1763652880788,0.22124137,90400.0,90391.0,0.00447]
[1763652881000,0.01127,90401.0,90394.0,0.01106268]
[1763652881193,0.00376,90400.0,90398.0,0.22124236]
[1763652881393,0.01127,90409.0,90401.0,0.01106182]
[1763652881651,0.01169011,90409.0,90405.0,0.01106133]
[1763652881859,0.00376,90408.0,90406.0,0.22122425]
[1763652882058,0.00042011,90409.0,90408.0,0.22121936]
[1763652882300,0.00042011,90409.0,90408.0,0.23623936]
[1763652882471,0.00042011,90409.0,90408.0,0.35891674]
[1763652882911,0.01127,90441.0,90408.0,0.35891674]
[1763652882912,0.02232509,90456.0,90443.0,0.01105668]
[1763652883053,0.02232509,90456.0,90437.0,0.01105742]
[1763652883054,0.22114051,90441.0,90437.0,0.01105742]
[1763652883223,0.00376,90441.0,90440.0,0.01105705]
[1763652883864,0.01127,90456.0,90446.0,0.01105632]
[1763652884057,0.01127,90456.0,90443.0,0.01105668]
[1763652884058,0.01105534,90454.0,90443.0,0.23218899]
[1763652884282,0.2211324,90444.0,90436.0,0.22114915]